Cogmind - Beta 16.1 @@@ ROGUE MODE // 2026.03.14 @ 19:06:03 Player: puppuppit Result: Destroyed by G-67 Veteran with Plasma Rifle Performance ------------- Evolutions (6) 3000 Regions Visited (13) 2600 Robots Destroyed (308) 1540 Value Destroyed (12269) 12269 Prototype IDs (31) 620 Alien Tech Used (2) 400 Bonus (7092) 7092 TOTAL SCORE: 27521 Bonus ------- Triggered High Security 500 High Alert Combat Kills 5098 Follower Combat Kills 1022 Registered with UFD 300 Met Optimus in HQ 500 Met Zhirov 300 Friendly Fire -628 Cogmind --------- Core Integrity 0/1150 Matter 239/300 Energy 80/100 System Corruption 21% Temperature Cool (30) Movement Walking (120) Location -4/Upper Caves Parts ------- > --- POWER (2) -------- (None) > --- PROPULSION (6) --- Myomer Leg Myomer Leg Antigrav System > --- UTILITY (7) ------ Terrain Scanner Improved Weapon Cycler (fused) Makeshift Weapon Shielding Hacking Suite Experimental Hacking Suite > --- WEAPON (4) ------- Improved Plasma Cutter > --- INVENTORY (5) ---- Neutrino Core Heavy Phase Cannon Railgun Long-range Missile Launcher Long-range Missile Launcher Peak State ------------ > --- POWER ------------ Micro Fission Core Antimatter Reactor > --- PROPULSION ------- Heavy Armored Exoskeleton Centrium Leg Combat Linear Gravjet > --- UTILITY ---------- Advanced Cooling System High-capacity Storage Unit Advanced Targeting Computer Improved Weapon Cycler Experimental Hacking Suite Advanced System Shield Long-range Tractor Beam > --- WEAPON ----------- Railgun Railgun Railgun Railgun > --- INVENTORY -------- Heavy Antimatter Reactor Myomer Leg Myomer Leg Improved Matter Compressor Advanced Matter Compressor Advanced Recoil Stabilizer Makeshift Weapon Shielding Powered Armor Improved Focal Shield Transdimensional Reconstructor Railgun Railgun Railgun Long-range Missile Launcher Long-range Missile Launcher Improved Plasma Cutter Phasing Sabre [Rating: 138] Favorites ----------- Power Light Antimatter Reactor Engine Light Angular Momentum Engine Power Core Micro Fission Core Reactor Light Antimatter Reactor Propulsion Flexi-carbon Leg Treads Light Treads Leg Flexi-carbon Leg Wheel Wheel Hover Unit Antigrav System Utility High-capacity Storage Unit Device Advanced Sensor Array Storage High-capacity Storage Unit Processor Advanced Targeting Computer Hackware Experimental Hacking Suite Protection Makeshift Weapon Shielding Weapon Railgun Energy Gun Heavy Laser Energy Cannon Subdweller Beam Cannon Ballistic Gun Railgun Ballistic Cannon Enhanced Gauss Cannon Launcher Long-range Missile Launcher Special Weapon Improved Plasma Cutter Slashing Weapon Phasing Sabre Special Melee Weapon Advanced Datajack Build | -11 -10 -10 -7 -5 -5 -5 -5 -4 -4 -4 -4 -4 -4 ------- Run | Yrd Mat Sub Scr Fac Upp Upp Zhi Pro Fac Was Fac Upp Upp Slots Evolved 12 | . . . . 10 . . . . 2 . . . . Power 1 | . . . . 1 . . . . . . . . . Propulsion 4 | . . . . 3 . . . . 1 . . . . Utility 5 | . . . . 4 . . . . 1 . . . . Weapon 2 | . . . . 2 . . . . . . . . . Parts Attached 221 | 7 12 12 6 75 10 2 5 11 51 5 21 2 2 Power 29 | 1 2 2 2 8 2 . 1 1 7 . 2 1 . Engine 9 | 1 2 2 1 2 1 . . . . . . . . Core 7 | . . . 1 2 1 . . 1 1 . . 1 . Reactor 13 | . . . . 4 . . 1 . 6 . 2 . . Propulsion 56 | 2 3 4 . 20 . 1 . 4 11 3 7 1 . Treads 3 | 2 1 . . . . . . . . . . . . Leg 45 | . . 1 . 20 . 1 . 4 11 2 6 . . Wheel 6 | . 2 3 . . . . . . . . 1 . . Hover 2 | . . . . . . . . . . 1 . 1 . Flight . | . . . . . . . . . . . . . . Utility 71 | 2 4 2 2 25 5 1 2 3 18 1 5 . 1 Device 30 | 1 1 . 2 10 1 1 . 1 9 . 4 . . Storage 10 | 1 2 1 . 2 . . 2 . 2 . . . . Processor 13 | . . . . 5 3 . . 2 3 . . . . Hackware 8 | . 1 . . 2 . . . . 3 . 1 . 1 Protection 10 | . . 1 . 6 1 . . . 1 1 . . . Artifact . | . . . . . . . . . . . . . . Weapon 65 | 2 3 4 2 22 3 . 2 3 15 1 7 . 1 Energy Gun 4 | . . . . 4 . . . . . . . . . Energy Cannon 3 | . . 2 . . . . . . . . . . 1 Ballistic Gun 43 | 2 2 1 2 14 . . 1 2 12 . 7 . . Ballistic Cannon 2 | . . . . . . . 1 1 . . . . . Launcher 6 | . 1 1 . 2 . . . . 1 1 . . . Special Weapon 2 | . . . . 1 . . . . 1 . . . . Impact Weapon . | . . . . . . . . . . . . . . Slashing Weapon 4 | . . . . 1 3 . . . . . . . . Piercing Weapon . | . . . . . . . . . . . . . . Special Melee Weapon 1 | . . . . . . . . . 1 . . . . Unidentified Prototypes 8 | . . . . 2 . . 4 . 2 . . . . Corrupted Parts 1 | . . . . . . . . . 1 . . . . System Corruption 11 | . . . . . . . . . 11 . . . . Parts Lost 97 | . 3 5 . 41 . . . 3 18 1 20 4 2 Power 12 | . 1 1 . 5 . . . . 1 . 3 . 1 Propulsion 33 | . 1 2 . 10 . . . 3 8 1 5 2 1 Utility 25 | . . 1 . 12 . . . . 4 . 7 1 . Weapon 27 | . 1 1 . 14 . . . . 5 . 5 1 . Highest Loss Streak 11 | . 2 3 . 11 . . . 2 11 1 10 2 2 To Critical Strikes 1 | . . . . . . . . . . . 1 . . Average Backups 16 | . 9 19 15 17 16 17 18 18 17 17 17 15 4 Power . | . . 1 . 1 . . . 1 1 1 1 1 . Propulsion 1 | . 1 2 1 2 . 1 1 . . 2 2 . . Utility 7 | . 3 6 4 8 14 14 13 12 10 6 6 2 . Weapon 5 | . 4 8 8 3 1 1 2 3 4 6 5 9 2 Tool/Special . | . . . . . . . . . . . . . . Unused Backups 36 | . 3 3 9 5 1 3 3 1 2 1 1 3 1 Power 4 | . . . 1 1 . . . . . . . 1 1 Propulsion 5 | . 1 1 2 1 . . . . . . . . . Utility 20 | . . 1 5 3 1 2 3 1 2 1 1 . . Weapon 7 | . 2 1 1 . . 1 . . . . . 2 . Tool/Special . | . . . . . . . . . . . . . . Average Slot Usage (%) 87 | . 98 89 66 88 88 100 99 90 94 92 83 81 69 Engine 4 | . 12 12 6 2 . 5 5 4 . . . . . Core 2 | . . . 4 3 . . . . 2 5 2 4 5 Reactor 3 | . . . . 3 4 5 5 5 7 5 6 5 5 Treads 3 | . 27 . . . . . . . . . . . . Leg 17 | . . 3 11 22 27 29 29 24 28 23 16 19 15 Wheel 1 | . . 19 . . . . . . . . . . . Device 9 | . 2 9 15 12 6 5 5 5 7 12 11 10 10 Storage 7 | . 14 13 7 5 5 5 5 5 5 5 5 4 . Processor 6 | . . . . 9 15 17 17 16 11 5 3 . . Hackware 4 | . 11 . . 2 . . . . 7 10 8 5 9 Protection 2 | . . 3 . 3 4 5 4 5 2 2 4 5 5 Energy Cannon 1 | . . 8 2 . . . . . . . . . . Ballistic Gun 15 | . 27 17 19 17 . . . 1 17 15 20 18 10 Slashing Weapon 3 | . . . . . 19 23 19 15 1 . . . . Peak Build Rating 138 | 9 10 29 42 91 83 83 86 95 126 138 137 102 89 Average Rating 67 | 6 9 16 34 79 73 82 83 78 108 128 124 96 79 On Entrance 64 | . 9 10 29 38 44 82 81 86 95 118 133 95 78 Avg Prop Armor Cover (%) 3 | . . . . 5 4 4 . 3 . 3 1 2 3 Naked Turns . | . . . . . . . . . . . . . . Heaviest Build 105 | 13 30 62 62 93 78 78 84 84 99 96 105 96 53 Greatest Support 145 | 40 40 55 55 114 70 85 85 100 136 141 145 100 75 Greatest Overweight (x) 7 | . 2 6 1 1 1 1 . 2 5 2 7 . . Average Overweight (x) . | . . 1 . . . . . . . . . . . Largest Inventory Capacity 20 | 8 15 20 20 20 20 20 20 20 20 20 20 20 5 Average Capacity 18 | 7 11 19 15 20 20 20 20 20 20 20 20 17 5 Most Carried 20 | . 15 20 20 20 20 20 20 20 20 20 20 19 5 Average Carried 17 | . 9 19 15 18 18 19 19 19 18 19 17 15 4 Final Capacity 20 | 8 15 20 20 20 20 20 20 20 20 20 20 5 5 Final Carried 20 | . 15 20 20 16 20 20 20 20 19 20 15 5 5 Scrap Suit Usage (%) 2 | . . . 8 8 . . . . . . . . . Parts Cannibalized 9 | . . . 1 8 . . . . . . . . . Class Distribution -------------------- 31% | Mutant 18% | Scavenger-Gunner 17% | Derelict-Gladiator 13% | Hacker-Gunner 7% | Scavenger-Mutant 5% | Scavenger-Skirmisher Dominant Class ---------------- Mutant | -10/Materials Mutant | -10/Subcaves Mutant | -7/Scraptown Scavenger-Gunner | -5/Factory Derelict-Gladiator | -5/Upper Caves Derelict-Gladiator | -5/Upper Caves Derelict-Gladiator | -5/Zhirov Derelict-Gladiator | -4/Proximity Caves Scavenger-Gunner | -4/Factory Hacker-Gunner | -4/Waste Hacker-Gunner | -4/Factory Scavenger-Skirmisher | -4/Upper Caves Scavenger-Mutant | -4/Upper Caves Resources | -11 -10 -10 -7 -5 -5 -5 -5 -4 -4 -4 -4 -4 -4 ----------- Run | Yrd Mat Sub Scr Fac Upp Upp Zhi Pro Fac Was Fac Upp Upp Matter Collected 16295 | 324 910 487 918 4705 226 189 419 501 3804 907 2472 433 . Remotely 3881 | . . . . 1103 . . . . 770 826 1182 . . Salvage Created 16756 | 160 1239 354 . 5320 246 249 422 394 3900 1119 3247 86 20 Parts 744 | 9 88 33 . 239 1 3 6 17 183 5 156 4 . Haulers Intercepted 4 | . 2 . . . . . . . . . 2 . . Recyclers Shooed 21 | . 2 . . 7 . . . . 5 . 7 . . Parts Field Recycled . | . . . . . . . . . . . . . . Retrieved Matter . | . . . . . . . . . . . . . . Parts Self-Destructed 46 | . . 14 . . . 2 4 24 . . . 2 . Prevented . | . . . . . . . . . . . . . . Parts Restored . | . . . . . . . . . . . . . . Kills | -11 -10 -10 -7 -5 -5 -5 -5 -4 -4 -4 -4 -4 -4 ------- Run | Yrd Mat Sub Scr Fac Upp Upp Zhi Pro Fac Was Fac Upp Upp Combat Hostiles Destroyed 206 | . 23 12 . 76 . 1 . 5 41 6 40 1 1 Melee 6 | . . . . . . 1 . 4 1 . . . . Guns 161 | . 21 6 . 67 . . . . 34 2 29 1 1 Cannons 3 | . . 1 . . . . . 1 1 . . . . AOE 34 | . 2 5 . 9 . . . . 3 4 11 . . Classes Destroyed 22 | 3 6 3 . 8 . . . 1 . 1 . . . Worker 28 | 2 7 . . 5 . . . . 5 . 9 . . Builder 22 | . 2 . . 8 . . . . 5 . 7 . . Tunneler 7 | 4 1 . . . . . . . . . 2 . . Hauler 4 | . 2 . . . . . . . . . 2 . . Recycler 21 | 1 3 . . 4 . . . . 9 . 4 . . Mechanic 4 | . . . . 3 . . . . 1 . . . . Operator 2 | . 1 . . . . . . . . . 1 . . Turret 2 | . . 2 . . . . . . . . . . . Watcher 9 | . 3 . . 1 . . . . 3 . 2 . . Swarmer 33 | . 9 3 . 8 . . . . 4 . 8 . 1 Grunt 87 | . 14 2 . 41 . . . 3 14 . 13 . . Brawler 3 | . . . . 2 . . . . 1 . . . . Duelist 4 | . . . . 3 . . . . 1 . . . . Protector 2 | . . . . 2 . . . . . . . . . Sentry 14 | . . 1 . 4 . 1 . . 3 . 4 1 . Specialist 2 | . . . . 2 . . . . . . . . . Hunter 16 | . . . . 2 . . . . 4 . 10 . . Programmer 32 | . . . . 12 . . . 1 14 . 5 . . Behemoth 1 | . . . . . . . . 1 . . . . . Compactor 6 | . . . . . . . . . . 6 . . . Subdweller 6 | . . 6 . . . . . . . . . . . Scrapoid 2 | . . . . 2 . . . . . . . . . Thug 1 | . . . . . . . . . . 1 . . . Best Kill Streak 12 | 4 5 5 . 11 . 1 . 2 9 2 12 1 1 Combat Bots Only 9 | . 4 3 . 9 . 1 . 2 4 2 9 1 1 Max Kills in Single Turn 7 | 1 2 2 . 4 . 1 . 1 4 2 7 1 1 Gunslinging 1 | . . . . . . . . . 1 . 1 . . Exploded 7 | . 2 2 . 2 . . . . 2 1 7 . . Melee 1 | . . . . . . 1 . 1 1 . . . . Uniques/NPCs Destroyed . | . . . . . . . . . . . . . . Combat | -11 -10 -10 -7 -5 -5 -5 -5 -4 -4 -4 -4 -4 -4 -------- Run | Yrd Mat Sub Scr Fac Upp Upp Zhi Pro Fac Was Fac Upp Upp Hostile Shots Fired 1438 | . 111 66 . 475 . 12 . 17 310 . 371 53 23 Missed 431 | . 35 22 . 126 . 3 . 5 94 . 117 21 8 Deflected 5 | . . . . . . . . . 5 . . . . Hits 1007 | . 76 44 . 349 . 9 . 12 216 . 254 32 15 Melee 34 | . . . . 9 . . . . 22 . . 3 . Projectile 973 | . 76 44 . 340 . 9 . 12 194 . 254 29 15 Critical Strikes 57 | . . . . 24 . . . 1 16 . 14 2 . Actively Blocked 10 | . . . . . . . . 1 6 . 2 1 . Part Disruptions 7 | . . . . 7 . . . . . . . . . Damage Taken 19639 | . 941 594 . 7632 . 208 . 249 4300 277 4466 676 296 Core 2163 | . 113 129 . 763 . 20 . . 588 139 310 35 66 Absorbed by Shields . | . . . . . . . . . . . . . . Redirected to Shielding 276 | . . . . 11 . . . 14 119 . 83 42 7 Ignored by Resistances 425 | . . . . . . . . . 191 . 234 . . Regen/Repaired (Parts) 1865 | . 130 . 6 70 . . . . 342 1317 . . . Core Remaining (%) 41 | 100 . . 3 . . . . 21 . . . . . Volleys Fired 663 | 9 104 37 . 222 . . . 9 144 21 101 13 3 Largest 4 | 2 2 2 . 4 . . . 3 4 4 4 4 4 Hottest 194 | 40 50 160 . 194 . . . 129 152 156 148 151 180 Shots Fired 2040 | 18 208 62 . 778 . . . 18 443 75 387 43 8 Gun 1917 | 18 207 38 . 758 . . . 5 432 35 378 40 6 Cannon 31 | . . 8 . . . . . 13 9 . . . 1 Launcher 89 | . 1 16 . 18 . . . . 2 40 9 3 . Special 3 | . . . . 2 . . . . . . . . 1 Kinetic 1874 | 18 207 42 . 689 . . . 18 441 35 378 40 6 Thermal 55 | . . 8 . 45 . . . . . . . . 2 Explosive 83 | . 1 12 . 16 . . . . 2 40 9 3 . Electromagnetic 28 | . . . . 28 . . . . . . . . . Robot Hit Streak 18 | 4 15 12 . 17 . . . 2 18 8 15 3 3 Robot Miss Streak 8 | 2 4 3 . 6 . . . 2 8 2 6 1 4 Penetration Max 2 | . . . . 1 . . . . 2 1 2 1 . Secondary Targets 27 | . 4 . . 9 . . . . 2 . 12 . . Max Gunslinging Chain 2 | . 1 . . 1 . . . . 1 . 2 . . Shots Hit Robots 1249 | 10 118 28 . 483 6 10 6 17 259 48 253 7 4 Core Hits 681 | 8 57 27 . 269 3 4 3 8 134 17 144 6 1 Critical Kills 19 | . . . . 7 . . . . 8 1 3 . . Critical Parts Destroyed 32 | . 1 . . 8 . . . . 16 . 7 . . Critical Strikes 59 | . 1 . . 15 1 . . 3 27 1 10 . 1 Destroy 53 | . 1 . . 15 . . . . 25 1 10 . 1 Blast 1 | . . . . . . . . . 1 . . . . Sever 5 | . . . . . 1 . . 3 1 . . . . Melee Attacks 58 | . . . . 8 7 18 6 13 6 . . . . Impact . | . . . . . . . . . . . . . . Slashing 58 | . . . . 8 7 18 6 13 6 . . . . Piercing . | . . . . . . . . . . . . . . Sneak Attacks 1 | . . . . . . 1 . . . . . . . Combat Hostiles . | . . . . . . . . . . . . . . Follow-up Attacks 6 | . . . . . 1 1 1 3 . . . . . Damage Inflicted 42447 | 128 1613 1067 . 13549 443 599 516 688 7966 5351 10096 324 107 Guns 27249 | 128 1496 265 . 10097 . . . 57 6727 702 7547 184 46 Cannons 490 | . . 53 . . . . . 234 170 . . . 33 Explosions 12184 | . 117 749 . 3275 . . . . 771 4649 2483 140 . Melee 2073 | . . . . . 443 599 516 397 118 . . . . Ramming 418 | . . . . 162 . . . . 180 . 66 . 10 Kinetic 27502 | 128 1496 537 . 9674 . . . 291 6897 702 7547 184 46 Thermal 2777 | . . 53 . 1309 . . . . 174 . 1190 . 51 Explosive 9053 | . 117 477 . 1979 . . . . 597 4649 1094 140 . Electromagnetic 624 | . . . . 425 . . . . . . 199 . . Impact . | . . . . . . . . . . . . . . Slashing 2073 | . . . . . 443 599 516 397 118 . . . . Piercing . | . . . . . . . . . . . . . . Highest Corruption 28 | . . . . 28 28 28 28 28 24 18 21 21 21 Average Corruption 20 | . . . . 18 28 28 28 28 10 15 18 21 21 Corruption Purged 20 | . . . . . . . . . 20 . . . . Corruption Blocked . | . . . . . . . . . . . . . . Effects 493 | . . . . 122 40 42 11 70 66 29 75 34 4 Message Errors 97 | . . . . 23 6 10 1 15 15 1 18 5 3 Matter Fused 111 | . . . . 23 14 16 2 24 13 4 12 2 1 Heat Flow Errors 55 | . . . . 14 7 6 2 7 7 3 5 4 . Energy Discharges 43 | . . . . 6 4 2 1 7 9 5 3 6 . Parts Rejected 4 | . . . . 1 . . . . . 1 2 . . Parts Fused 10 | . . . . 1 3 1 1 1 . 1 1 1 . Data Loss (minor) 51 | . . . . 15 3 5 2 8 5 4 6 3 . Data Loss (major) 23 | . . . . 7 1 2 . 4 2 4 2 1 . Misfires 19 | . . . . 5 . . . . 3 3 8 . . Alerts 17 | . . . . 5 2 . 2 1 5 . 1 1 . Misdirections 12 | . . . . 4 . . . . . . 3 5 . Weapon Failures 51 | . . . . 18 . . . 3 7 3 14 6 . Overload Shots . | . . . . . . . . . . . . . . Overflow Damage 786 | . . 10 . 169 89 148 223 4 30 34 79 . . Projectiles 4 | . . . . . . . . 4 . . . . . Explosions 266 | . . 10 . 122 . . . . 21 34 79 . . Melee 516 | . . . . 47 89 148 223 . 9 . . . . Knockbacks 9 | . . . . 2 . . . 2 5 . . . . Impact 5 | . . . . 2 . . . . 3 . . . . Kinetic 4 | . . . . . . . . 2 2 . . . . Secondary . | . . . . . . . . . . . . . . Self-Inflicted Damage 292 | . . 36 . 135 . . . . 33 . 51 37 . Shots 8 | . . 1 . 4 . . . . 1 . 1 1 . Rammed . | . . . . . . . . . . . . . . Targets Rammed 27 | . . . . 7 . . . . 15 . 4 . 1 Kicked 27 | . . . . 7 . . . . 15 . 4 . 1 Crushed . | . . . . . . . . . . . . . . Highest Temperature 550 | . 8 39 . 550 196 253 194 266 319 249 374 277 102 Average Temperature 93 | . 3 23 . 101 78 107 88 99 89 94 90 81 35 Received Heat Transfer 3336 | . 297 198 . 1622 . 36 . 27 551 . 464 75 66 Effects 14 | . . . . 7 . . . . 1 . 6 . . Shutdowns 2 | . . . . 2 . . . . . . . . . Interference 7 | . . . . . . . . . 1 . 6 . . Matter Decay 1 | . . . . 1 . . . . . . . . . Short Circuit 2 | . . . . 2 . . . . . . . . . Damage (minor) 2 | . . . . 2 . . . . . . . . . Siege Activations . | . . . . . . . . . . . . . . Martial Activations . | . . . . . . . . . . . . . . Shielding Activations 3 | . . . . . . . . . 3 . . . . Total Turns 33 | . . . . . . . . . 33 . . . . Longest Duration 18 | . . . . . . . . . 18 . . . . Robots Disrupted . | . . . . . . . . . . . . . . Combat Hostiles . | . . . . . . . . . . . . . . Robots Corrupted 6 | . . . . 3 . . . . 3 . . . . Combat Hostiles 2 | . . . . . . . . . 2 . . . . Parts Fried 9 | . . . . 6 . . . . 3 . . . . Impact Corruptions 7 | . . . . 3 . . . . 4 . . . . Robots Melted . | . . . . . . . . . . . . . . Combat Hostiles . | . . . . . . . . . . . . . . Parts Melted 4 | . . . . 2 . . . . . . 2 . . Heat Transferred 2484 | . . 74 . 1536 . . . . 100 . 700 . 74 Parts Sabotaged . | . . . . . . . . . . . . . . Parts Stolen . | . . . . . . . . . . . . . . Parts Stripped . | . . . . . . . . . . . . . . Power Chain Reactions 1 | . . . . 1 . . . . . . . . . Alert | -11 -10 -10 -7 -5 -5 -5 -5 -4 -4 -4 -4 -4 -4 ------- Run | Yrd Mat Sub Scr Fac Upp Upp Zhi Pro Fac Was Fac Upp Upp Maximum Alert Level 5 | . 1 . . 5 . . . . 3 2 5 . . Low Security (%) 28 | 100 61 . . 4 . . . . 45 . 4 . . Level 1 22 | . 38 . . . . . . . 33 55 12 . . Level 2 14 | . . . . 11 . . . . 20 44 20 . . Level 3 8 | . . . . 23 . . . . . . 7 . . Level 4 10 | . . . . 24 . . . . . . 20 . . Level 5 13 | . . . . 28 . . . . . . 34 . . High Security 2 | . . . . 6 . . . . . . . . . Max Security . | . . . . . . . . . . . . . . Peak Influence 2262 | 15 267 . . 2262 . . . . 817 455 2044 . . Initial 285 | . 6 . . . . . . . 15 285 244 . . Average 675 | 3 127 . . 1285 . . . . 277 389 1163 . . Influence Increases 9261 | 35 778 175 . 3346 5 30 15 145 1618 344 2610 65 95 Destroy 0b10 Robot/C 4420 | . 460 160 . 1720 . 20 . 100 820 . 1100 20 20 Destroy 0b10 Robot/NC 545 | 35 95 . . 125 5 10 15 . 115 . 145 . . Destroy Leader 840 | . 100 . . 312 . . . 30 176 . 222 . . Allied During Kill 514 | . . . . 144 . . . . . . 370 . . Successful Hack 175 | . 35 . . 33 . . . . 51 . 56 . . Select Force Hacks 60 | . 60 . . . . . . . . . . . . Disable Machine 615 | . 15 . . 225 . . . . 150 . 225 . . Destroy Structure 1417 | . 13 . . 502 . . . . 216 344 342 . . Partial Spotted 30 | . . . . . . . . . 15 . 15 . . Lose Combat Pursuer 645 | . . 15 . 285 . . . 15 75 . 135 45 75 Influence Decreases 8364 | 25 565 398 . 1142 1185 576 493 120 826 812 935 1036 251 Entered New Map 3201 | . 4 108 . . 817 196 478 . 10 532 105 750 201 Time Decay 4003 | 25 531 240 . 652 368 380 15 120 636 270 490 246 30 Lost Part 940 | . 30 50 . 410 . . . . 180 10 200 40 20 Lost Ally 220 | . . . . 80 . . . . . . 140 . . Squads Dispatched 75 | . 5 . . 35 . . . . 16 . 18 . 1 Investigation 14 | . 4 . . 2 . . . . 4 . 4 . . Extermination 15 | . . . . 6 . . . . 6 . 3 . . Reinforcement 19 | . 1 . . 11 . . . . 2 . 5 . . Assault 17 | . . . . 13 . . . . . . 3 . 1 Garrison 10 | . . . . 3 . . . . 4 . 3 . . Intercept . | . . . . . . . . . . . . . . Searches Triggered . | . . . . . . . . . . . . . . Construction Impeded 8 | . . . . 5 . . . . 1 . 2 . . Haulers Reinforced 3 | . . . . 1 . . . . 1 . 1 . . Active Scanning Responses . | . . . . . . . . . . . . . . Cargo Convoy Interrupts 1 | . . . . 1 . . . . . . . . . Stealth | -11 -10 -10 -7 -5 -5 -5 -5 -4 -4 -4 -4 -4 -4 --------- Run | Yrd Mat Sub Scr Fac Upp Upp Zhi Pro Fac Was Fac Upp Upp Distress Signals 19 | . 2 . . 6 . . . . 3 . 8 . . Communications Jammed . | . . . . . . . . . . . . . . Distress Signals . | . . . . . . . . . . . . . . Times Spotted 343 | . 31 15 . 131 . 1 . 6 50 6 82 9 12 Peak Tracking Total 9 | . 5 5 . 8 . 1 . 3 5 3 9 7 9 Tactical Retreats 28 | . . 1 . 12 . . . 1 4 . 7 2 1 Traps | -11 -10 -10 -7 -5 -5 -5 -5 -4 -4 -4 -4 -4 -4 ------- Run | Yrd Mat Sub Scr Fac Upp Upp Zhi Pro Fac Was Fac Upp Upp Traps Triggered 11 | . 4 1 . 1 . . . . 3 . 2 . . Indirectly . | . . . . . . . . . . . . . . Trap Hack Attempts . | . . . . . . . . . . . . . . Triggered . | . . . . . . . . . . . . . . Disarmed . | . . . . . . . . . . . . . . Reprogrammed . | . . . . . . . . . . . . . . Reused 1 | . . 1 . . . . . . . . . . . Traps Extracted . | . . . . . . . . . . . . . . Installed 1 | . . 1 . . . . . . . . . . . Triggered . | . . . . . . . . . . . . . . Machines | -11 -10 -10 -7 -5 -5 -5 -5 -4 -4 -4 -4 -4 -4 ---------- Run | Yrd Mat Sub Scr Fac Upp Upp Zhi Pro Fac Was Fac Upp Upp Machines Disabled 46 | . 1 5 . 15 . . . . 10 . 15 . . Max in Single Turn 7 | . 1 3 . 3 . . . . 2 . 7 . . Garrison Access 1 | . . . . 1 . . . . . . . . . Machines Repaired . | . . . . . . . . . . . . . . Machines Dismantled . | . . . . . . . . . . . . . . Machines Sabotaged . | . . . . . . . . . . . . . . Overloaded Fab Kills . | . . . . . . . . . . . . . . Hacking | -11 -10 -10 -7 -5 -5 -5 -5 -4 -4 -4 -4 -4 -4 --------- Run | Yrd Mat Sub Scr Fac Upp Upp Zhi Pro Fac Was Fac Upp Upp Machines Accessed 48 | . 9 2 3 7 1 . 4 . 10 . 12 . . Terminals 16 | . 6 . . 4 . . . . 3 . 3 . . Fabricators 3 | . . . . . . . . . 2 . 1 . . Repair Stations 4 | . 1 . . 1 . . . . 2 . . . . Recycling Units 9 | . 2 . . 1 . . . . 2 . 4 . . Scanalyzers 3 | . . . . 1 . . . . . . 2 . . Garrison Access 3 | . . . . . . . . . 1 . 2 . . Total Hacks 205 | . 36 14 25 24 1 . 17 . 33 . 55 . . Successful 148 | . 31 14 25 7 1 . 17 . 19 . 34 . . Failed 55 | . 5 . . 16 . . . . 14 . 20 . . Catastrophic 4 | . 1 . . 2 . . . . . . 1 . . Database Lockouts 2 | . . . . 1 . . . . . . 1 . . Manual 95 | . 31 . . 17 . . . . 26 . 21 . . Terminals 55 | . 25 . . 12 . . . . 8 . 10 . . Fabricators 7 | . . . . . . . . . 6 . 1 . . Repair Stations 18 | . 5 . . 3 . . . . 10 . . . . Recycling Units 26 | . 6 . . 7 . . . . 5 . 8 . . Scanalyzers 31 | . . . . 2 . . . . . . 29 . . Garrison Access 11 | . . . . . . . . . 4 . 7 . . Terminal Hacks 68 | . 9 14 25 1 1 . 17 . . . 1 . . Record 43 | . . 13 25 . . . 5 . . . . . . Part Schematic 4 | . . . . . . . 4 . . . . . . Robot Analysis 12 | . 8 . . . . . 4 . . . . . . Prototype ID Bank 4 | . . . . . . . 4 . . . . . . Open Door 1 | . . . . . 1 . . . . . . . . Terminal Index 1 | . 1 . . . . . . . . . . . . Locate Traps 2 | . . . . 1 . . . . . . 1 . . Proto ID Catalog 1 | . . 1 . . . . . . . . . . . Fabricator Hacks 1 | . . . . . . . . . 1 . . . . Network Status 1 | . . . . . . . . . 1 . . . . Repair Station Hacks 9 | . 4 . . 1 . . . . 4 . . . . Scan Component 5 | . 2 . . 1 . . . . 2 . . . . Repair 4 | . 2 . . . . . . . 2 . . . . Recycling Unit Hacks . | . . . . . . . . . . . . . . Scanalyzer 26 | . . . . 1 . . . . . . 25 . . Insert Component 9 | . . . . . . . . . . . 9 . . Analyze 13 | . . . . . . . . . . . 13 . . Retrieve Study 4 | . . . . 1 . . . . . . 3 . . Garrison Access Hacks . | . . . . . . . . . . . . . . Unauthorized Hacks 44 | . 18 . . 4 . . . . 14 . 8 . . Terminals 21 | . 12 . . 2 . . . . 5 . 2 . . Botnet 10 | . 5 . . 1 . . . . 2 . 2 . . Disrupt 1 | . 1 . . . . . . . . . . . . Operators 2 | . 1 . . 1 . . . . . . . . . Skim 8 | . 5 . . . . . . . 3 . . . . Fabricators 2 | . . . . . . . . . 2 . . . . Report 1 | . . . . . . . . . 1 . . . . Liberate 1 | . . . . . . . . . 1 . . . . Repair Stations 3 | . 1 . . . . . . . 2 . . . . Mechanics 2 | . 1 . . . . . . . 1 . . . . Patch 1 | . . . . . . . . . 1 . . . . Recycling Units 15 | . 5 . . 2 . . . . 5 . 3 . . Reject 3 | . 1 . . 1 . . . . 1 . . . . Recyclers 3 | . 1 . . 1 . . . . 1 . . . . Mask 2 | . 1 . . . . . . . 1 . . . . Tunnel 2 | . 2 . . . . . . . . . . . . Fedlink 5 | . . . . . . . . . 2 . 3 . . Scanalyzers . | . . . . . . . . . . . . . . Garrison Access 3 | . . . . . . . . . . . 3 . . Intercept 2 | . . . . . . . . . . . 2 . . Watchers 1 | . . . . . . . . . . . 1 . . Data Cores Recovered . | . . . . . . . . . . . . . . Used . | . . . . . . . . . . . . . . Hacking Detections 30 | . 8 . . 7 . . . . 6 . 9 . . Full Trace Events 3 | . 1 . . 2 . . . . . . . . . Feedback Events . | . . . . . . . . . . . . . . Feedback Blocked . | . . . . . . . . . . . . . . Robot Schematics Acquired . | . . . . . . . . . . . . . . Robots Built . | . . . . . . . . . . . . . . Authchips . | . . . . . . . . . . . . . . Time . | . . . . . . . . . . . . . . Total Robot Build Rating . | . . . . . . . . . . . . . . Part Schematics Acquired 10 | . . . . . . . 4 . . . 6 . . Parts Built . | . . . . . . . . . . . . . . Authchips . | . . . . . . . . . . . . . . Time . | . . . . . . . . . . . . . . Total Part Build Rating . | . . . . . . . . . . . . . . Part Studies Acquired 4 | . . . . 1 . . . . . . 3 . . Parts Repaired 3 | . 2 . . . . . . . 1 . . . . Time 158 | . 52 . . . . . . . 106 . . . . Parts Recycled . | . . . . . . . . . . . . . . Recycled Matter . | . . . . . . . . . . . . . . Retrieved Matter . | . . . . . . . . . . . . . . Retrieved Components . | . . . . . . . . . . . . . . Parts Scanalyzed 6 | . . . . . . . . . . . 6 . . Part Schematics Acquired 6 | . . . . . . . . . . . 6 . . Parts Damaged 2 | . . . . . . . . . . . 2 . . Bothacking | -11 -10 -10 -7 -5 -5 -5 -5 -4 -4 -4 -4 -4 -4 ------------ Run | Yrd Mat Sub Scr Fac Upp Upp Zhi Pro Fac Was Fac Upp Upp Used RIF Installer . | . . . . . . . . . . . . . . Robots Hacked . | . . . . . . . . . . . . . . Non-combat . | . . . . . . . . . . . . . . Combat . | . . . . . . . . . . . . . . Robot Hacks Applied . | . . . . . . . . . . . . . . Relay Couplers Released 2 | . . . . 2 . . . . . . . . . Machine Destruction 2 | . . . . 2 . . . . . . . . . Fabnet Peak Effective % . | . . . . . . . . . . . . . . Robots Rewired . | . . . . . . . . . . . . . . Allies Hacked . | . . . . . . . . . . . . . . Hacks Repelled . | . . . . . . . . . . . . . . Allies | -11 -10 -10 -7 -5 -5 -5 -5 -4 -4 -4 -4 -4 -4 -------- Run | Yrd Mat Sub Scr Fac Upp Upp Zhi Pro Fac Was Fac Upp Upp Total Allies 25 | . . . 5 . . . . . . 20 . . . Largest Group 19 | . . . 5 5 . . . . . 19 19 . . Highest-Rated Group 684 | . . . 238 238 . . . . . 684 684 . . Highest-Rated Ally 50 | . . . 50 50 . . . . . 50 50 . . Initial UFD Resources 61 | . . . . 37 37 37 37 41 41 55 55 61 61 Total Orders 9 | . . . . 3 . . . . . . 6 . . EXPLORE 9 | . . . . 3 . . . . . . 6 . . Ally Attacks 143 | . . . . 74 . . . . . 4 65 . . Total Damage 4345 | . . . . 1626 . . . . . 63 2656 . . Kills 31 | . . . . 13 . . . . . . 18 . . Allies Corrupted . | . . . . . . . . . . . . . . Allies Melted . | . . . . . . . . . . . . . . Intel | -11 -10 -10 -7 -5 -5 -5 -5 -4 -4 -4 -4 -4 -4 ------- Run | Yrd Mat Sub Scr Fac Upp Upp Zhi Pro Fac Was Fac Upp Upp Active Infowar (turns) 9386 | 41 347 1039 1653 930 854 891 225 1319 1303 . 188 525 71 Optics 180 | . . . . 180 . . . . . . . . . Sensors 4592 | . . . . . 854 891 225 1319 1303 . . . . Terrain 4794 | 41 347 1039 1653 930 . . . . . . 188 525 71 Robot Analysis Total 12 | . 8 . . . . . 4 . . . . . . Derelict Logs Recovered 9 | . . 1 5 . 2 . . 1 . . . . . Drone Launches 9 | . . . . 3 . . . . . . 6 . . Drone Recoveries 5 | . . . . 1 . . . . . . 4 . . Exploration | -11 -10 -10 -7 -5 -5 -5 -5 -4 -4 -4 -4 -4 -4 ------------- Run | Yrd Mat Sub Scr Fac Upp Upp Zhi Pro Fac Was Fac Upp Upp Turns Passed 16725 | 118 2060 1468 2373 2686 854 891 225 1319 2250 586 1299 525 71 Spaces Moved 9782 | 54 1048 1024 1659 1393 657 448 165 689 1089 383 730 398 45 Core 4 | 4 . . . . . . . . . . . . . Treads 1049 | 50 999 . . . . . . . . . . . . Legs 7863 | . . 208 1659 1393 657 448 165 689 1089 383 729 398 45 Wheels 866 | . 49 816 . . . . . . . . 1 . . Hover . | . . . . . . . . . . . . . . Flight . | . . . . . . . . . . . . . . Fastest Speed 50 | 50 95 95 130 108 115 116 116 116 120 120 120 120 120 Average Speed 135 | 151 156 126 137 120 123 187 116 167 125 126 121 120 120 Slowest Speed 470 | 160 160 200 200 186 190 190 116 260 470 260 190 120 120 Overloaded Moves . | . . . . . . . . . . . . . . Propulsion Burnouts . | . . . . . . . . . . . . . . Robots Hopped . | . . . . . . . . . . . . . . Potential Cave-ins 14 | . . 3 . 2 . . . . . 4 . 5 . Cave-ins Triggered 2 | . . . . 1 . . . . . 1 . . . Teleports 1 | . . . . . . . . . . . 1 . . Exploration Rate (%) 52 | 4 97 59 71 32 73 62 60 72 23 90 28 48 10 Regions Visited 13 Branch Regions 8 Pre-discovered Areas 8 | . 2 . 2 . . . 3 . 1 . . . . Known Exits Taken 5 | . . . . . 1 1 1 1 . . 1 . . Unknown Exits Taken 6 | 1 1 1 1 1 . . . . . . . 1 . Scrap Searched 22 | . . 4 9 . 2 4 . 2 . . . 1 . Spaces Dug 115 | . . 13 . 27 . 4 . 2 3 31 11 24 . Terrain Destroyed 1069 | . 9 96 . 223 . 4 . 14 138 333 172 75 5 Melee 16 | . . . . 8 . 4 . 2 2 . . . . Projectile 273 | . . . . 16 . . . 12 117 14 85 24 5 AOE 773 | . 9 96 . 197 . . . . 16 319 86 50 . Terrain Rammed . | . . . . . . . . . . . . . . Walls Destroyed . | . . . . . . . . . . . . . . Machines Disabled . | . . . . . . . . . . . . . . Actions | -11 -10 -10 -7 -5 -5 -5 -5 -4 -4 -4 -4 -4 -4 --------- Run | Yrd Mat Sub Scr Fac Upp Upp Zhi Pro Fac Was Fac Upp Upp Total 11804 | 69 1258 1127 1756 1923 688 477 187 819 1638 440 941 421 60 Wait 521 | . 58 11 34 70 . 4 . 71 238 8 26 1 . Move 9768 | 53 1047 1023 1658 1391 656 447 164 688 1089 381 729 397 45 Hop . | . . . . . . . . . . . . . . Pick Up 181 | . 20 16 33 50 8 4 3 5 23 5 10 4 . Fast Attach 85 | 7 4 3 5 17 7 . 1 7 16 3 13 2 . Attach 100 | . 3 6 2 42 3 . . 5 20 2 13 . 4 Detach 43 | . 1 1 2 11 2 . . 7 10 2 2 . 5 Swap 222 | . 11 17 1 63 3 3 11 11 54 11 35 2 . Drop 135 | . 10 12 21 36 4 4 3 6 23 6 6 2 2 Fire 663 | 9 104 37 . 222 . . . 9 144 21 101 13 3 Melee 48 | . . . . 8 5 15 5 9 6 . . . . Ram 1 | . . . . 1 . . . . . . . . . Kick 27 | . . . . 7 . . . . 15 . 4 . 1 Crush . | . . . . . . . . . . . . . . Escape Stasis 6 | . . . . 3 . . . . . 1 2 . . Rewire 2 | . . . . 2 . . . . . . . . . Trap 1 | . . 1 . . . . . . . . . . . Miscellaneous 1 | . . . . . . . . 1 . . . . . Route ------- -11/Scrapyard -10/Materials (discovered 6 exits: [*Mat x3] / [*Min x2] / *Sub) -10/Subcaves (discovered 4 exits: *Mat x2 / *Rec / *Scr) -7/Scraptown -5/Factory (discovered 2 exits: Fac / *Upp) -5/Upper Caves -5/Upper Caves (discovered 2 exits: *Fac / *Zhi) -5/Zhirov -4/Proximity Caves -4/Factory (discovered 5 exits: *Res x3 / *Upp x2) -4/Waste -4/Factory -4/Upper Caves -4/Upper Caves History --------- Turn | Location | Event 6 | -11/Scrapyard | Discovered new exit (range 15) 119 | -11/Scrapyard | Entered Materials 310 | -10/Materials | Build established: Mutant 550 | -10/Materials | Discovered new exit (range 15) 824 | -10/Materials | Repaired Lgt. Treads 851 | -10/Materials | Repaired Assault Rifle 992 | -10/Materials | Discovered new exit (range 7) 1202 | -10/Materials | Discovered new exit (range 16) 1245 | -10/Materials | Discovered new exit (range 11) 1420 | -10/Materials | Discovered new exit (range 14) 1481 | -10/Materials | Discovered new exit (range 15) 2179 | -10/Materials | Entered Subcaves 2180 | -10/Subcaves | Approached by a straggling Scientist 2182 | -10/Subcaves | Discovered new exit (range 8) 2198 | -10/Subcaves | Visited Clippyterm 2200 | -10/Subcaves | Identified exit to Recycling 2200 | -10/Subcaves | Identified exit to Materials 2200 | -10/Subcaves | Learned Factory trap positions 2322 | -10/Subcaves | Core integrity fell below 50% 2424 | -10/Subcaves | Build established: Scavenger-Mutant 2461 | -10/Subcaves | Learned location of 1 exit from Materials 3005 | -10/Subcaves | Build established: Mutant 3062 | -10/Subcaves | Lost 3 parts (1p1n1u) 3072 | -10/Subcaves | A swath of the cavern ceiling suddenly collapsed 3137 | -10/Subcaves | Disturbed a concealed Subdweller 3201 | -10/Subcaves | Core integrity fell below 20% 3211 | -10/Subcaves | Visited 4L-MR0's lab 3228 | -10/Subcaves | Found Cargo Legs 3230 | -10/Subcaves | Attached Cargo Legs, gained temporary slots: Utility x2 3647 | -10/Subcaves | Entered Scraptown 3837 | -7/Scraptown | Scanned Subdweller tech in exchange for log data 3841 | -7/Scraptown | Learned location of Quarantine (-2) 3845 | -7/Scraptown | Learned Factory stockpile data 3847 | -7/Scraptown | Learned 12 Factory zone layouts 3849 | -7/Scraptown | Learned location of 1 exit from Research 3875 | -7/Scraptown | Heard Great Nut preacher, LISTEN AND RECITE! 3903 | -7/Scraptown | Visited Bundlers 4047 | -7/Scraptown | Visited Red Mages 4451 | -7/Scraptown | Visited UFD Registry 4455 | -7/Scraptown | Registered with UFD as "Micropod" 4484 | -7/Scraptown | Visited Curators Association 4522 | -7/Scraptown | Visited Scrap Suit Storage 4585 | -7/Scraptown | Visited Supply Room 4609 | -7/Scraptown | Visited Observation Area 4627 | -7/Scraptown | Visited Derelict Rescue Squad 4635 | -7/Scraptown | Found DRS Beacon 4661 | -7/Scraptown | Visited DA-N13 Charitable Foundation 4674 | -7/Scraptown | Found DCF Scrap (27 items) 4785 | -7/Scraptown | Found Scrap Suit 4930 | -7/Scraptown | Visited Scrapoid Pod Storage 5026 | -7/Scraptown | Found Scrapoid Pod 5473 | -7/Scraptown | Scrapoid Pod released 07S05-D (x5) 5938 | -7/Scraptown | Met Optimus 5938 | -7/Scraptown | Accepted into 0bPrime 6007 | -7/Scraptown | Discovered new exit (range 5) 6020 | -7/Scraptown | Entered Factory 6020 | -5/Factory | Accompanied by 5 allies 6020 | -5/Factory | Evolved 10 slots: Power x1, Propulsion x3, Utility x4, Weapon x2 6021 | -5/Factory | Identified exit to Factory 6022 | -5/Factory | Loaded intel: 76 trap records 6230 | -5/Factory | Lost 3 allies 6299 | -5/Factory | Central database locked down 6333 | -5/Factory | Found Scrap Suit 6361 | -5/Factory | Discovered new exit (range 14) 6517 | -5/Factory | System corruption reached 10% 6558 | -5/Factory | Destroyed 7 combat bots 6620 | -5/Factory | First assault squad dispatched 6824 | -5/Factory | Destroyed 9 combat bots 6930 | -5/Factory | Found Powered Armor 6933 | -5/Factory | Found Powered Armor 6935 | -5/Factory | Found Powered Armor 7029 | -5/Factory | Garrison activated, responded to threat 7065 | -5/Factory | Build established: Scavenger-Skirmisher 7168 | -5/Factory | Cargo convoy interrupted 7481 | -5/Factory | Build established: Scavenger-Gunner 7852 | -5/Factory | Lost 8 parts (3n4u1w) 8521 | -5/Factory | High security lockdown imminent 8601 | -5/Factory | High security lockdown engaged 8661 | -5/Factory | Core integrity fell below 50% 8690 | -5/Factory | Crushed by falling debris 8706 | -5/Factory | Entered Upper Caves 8737 | -5/Upper Caves | Lost 11 parts (1p4n3u3w) 9169 | -5/Upper Caves | Build established: Derelict-Gladiator 9327 | -5/Upper Caves | Learned Factory garrison access intel 9334 | -5/Upper Caves | Learned 8 Factory zone layouts 9339 | -5/Upper Caves | Encountered a Warlord checkpoint 9355 | -5/Upper Caves | Discovered new exit (range 8) 9558 | -5/Upper Caves | Identified exit to Upper Caves 9560 | -5/Upper Caves | Entered another Upper Caves area 9562 | -5/Upper Caves | Attracted the attention of an 0b10 checkpoint 9667 | -5/Upper Caves | Discovered exit to Factory (range 6) 10413 | -5/Upper Caves | Discovered new exit (range 7) 10428 | -5/Upper Caves | Identified exit to Zhirov 10451 | -5/Upper Caves | Entered Zhirov 10451 | -5/Zhirov | Discovered new exit (range 3) 10472 | -5/Zhirov | Met Zhirov 10589 | -5/Zhirov | Found Alien Artifact 10589 | -5/Zhirov | Identified Integrated Reactor 10589 | -5/Zhirov | Installed Integrated Reactor, increased core energy generation (+10) 10605 | -5/Zhirov | Found Alien Artifact 10633 | -5/Zhirov | Learned location of Testing (-3) 10633 | -5/Zhirov | Learned location of Command (-1) 10644 | -5/Zhirov | Zhirov requested help retrieving the SGEMP Prototype 10675 | -5/Zhirov | Identified exit to Proximity Caves 10676 | -5/Zhirov | Entered Proximity Caves 10949 | -4/Proximity Caves | Activated DRS Beacon 11026 | -4/Proximity Caves | Spotted B-86 Titan 11033 | -4/Proximity Caves | Destroyed B-86 Titan 11332 | -4/Proximity Caves | Discovered exit to Factory (range 5) 11995 | -4/Proximity Caves | Entered Factory 11995 | -4/Factory | Evolved 2 slots: Propulsion x1, Utility x1 11996 | -4/Factory | Identified exit to Research 11996 | -4/Factory | Identified exit to Upper Caves 11997 | -4/Factory | Loaded intel: 4 garrison access locations 12284 | -4/Factory | Build established: Scavenger-Gunner 12345 | -4/Factory | Garrison activated, responded to threat 12390 | -4/Factory | Loaded intel: 8 recycling unit locations 12946 | -4/Factory | Discovered exit to Upper Caves (range 2) 13199 | -4/Factory | Lost 3 parts (1n2w) 13288 | -4/Factory | System corruption reached 10% 13329 | -4/Factory | Lost 11 parts (6n3u2w) 13468 | -4/Factory | Found Prototype Hackware 13468 | -4/Factory | Identified Exp. Hacking Suite 13476 | -4/Factory | Learned location of Protoforge (-2) 13884 | -4/Factory | Core integrity fell below 50% 13949 | -4/Factory | Build established: Hacker-Gunner 14166 | -4/Factory | Discovered exit to Research (range 16) 14184 | -4/Factory | Repaired Powered Armor 14226 | -4/Factory | Garrison activated, responded to threat 14245 | -4/Factory | Sucked down chute 14245 | -4/Factory | Entered Waste 14246 | -4/Waste | Met a frightened Derelict 14261 | -4/Waste | Spotted C-40 Crusher 14278 | -4/Waste | Spotted C-40 Crusher 14287 | -4/Waste | Destroyed C-40 Crusher 14331 | -4/Waste | Destroyed C-40 Crusher 14348 | -4/Waste | Spotted C-40 Crusher 14354 | -4/Waste | Spotted C-40 Crusher 14397 | -4/Waste | Destroyed C-40 Crusher 14403 | -4/Waste | Spotted C-40 Crusher 14438 | -4/Waste | Spotted C-40 Crusher 14481 | -4/Waste | Destroyed C-40 Crusher 14500 | -4/Waste | Discovered new exit (range 13) 14530 | -4/Waste | Crushed by falling debris 14549 | -4/Waste | Destroyed C-40 Crusher 14549 | -4/Waste | Destroyed C-40 Crusher 14590 | -4/Waste | Warlord forces began an assault 14831 | -4/Waste | Entered Factory 14831 | -4/Factory | Accompanied by 19 allies 14930 | -4/Factory | Central database locked down 14983 | -4/Factory | Lost 12 allies 15096 | -4/Factory | Loaded intel: 8 recycling unit locations 15103 | -4/Factory | Discovered exit to Upper Caves (range 16) 15421 | -4/Factory | Identified Transdimensional Reconstructor 15421 | -4/Factory | Watched by a mysterious "MATRIX" hacker. 15585 | -4/Factory | Garrison activated, responded to threat 15627 | -4/Factory | Destroyed 9 combat bots 15731 | -4/Factory | Destroyed 7 combat bots 15831 | -4/Factory | First assault squad dispatched 15885 | -4/Factory | Destroyed 7 combat bots 15887 | -4/Factory | Core integrity fell below 20% 15919 | -4/Factory | Warped through subspace 15936 | -4/Factory | Lost 10 parts (2p3n4u1w) 16130 | -4/Factory | Entered Upper Caves 16131 | -4/Upper Caves | Build established: Scavenger-Gunner 16132 | -4/Upper Caves | Attracted the attention of an 0b10 checkpoint 16187 | -4/Upper Caves | Spotted B-86 Titan 16490 | -4/Upper Caves | Build established: Scavenger-Skirmisher 16546 | -4/Upper Caves | Attracted the attention of an 0b10 outpost 16648 | -4/Upper Caves | Discovered new exit (range 4) 16655 | -4/Upper Caves | Entered another Upper Caves area 16686 | -4/Upper Caves | Attracted the attention of an 0b10 outpost 16726 | -4/Upper Caves | Destroyed by G-67 Veteran with Plasma Rifle Last Messages --------------- 16700_ Slug penetrates Wall. 16703_ Slug penetrates S-27 Virus. 16703_ S-27 Virus destroyed. 16703_ Slug penetrates Wall. 16704_ &B4|/R>FD0JBBS0VEHEFXF|JPCNSA0XAFAYO4 16714_ Dropped Lgt. Angular Momentum Engine. 16715_ Identified Hvy. Phase Cannon. 16717_ Y-72 Warden suffers critical hit (Destroy). 16719_ Slug penetrates Wall. 16721_ Kicked Y-72 Warden out of the way. 16722_ Slug penetrates Wall. 16724_ C-45 Heavy ARC bursts open, deploying its payload. 16724_ G-73 Enforcer unfolds itself. 16724_ G-67 Veteran unfolds itself. 16724_ M-36 Artificer unfolds itself. 16724_ Myomer Leg destroyed. 16725_ Lgt. Antimatter Reactor destroyed. 16726_ 0 CDWGY